Cogmind - Beta 17 @@@ ROGUE MODE // 2026.07.03 @ 23:58:47 Player: OBLIQUE Result: Destroyed by Cetus Guard with Advanced KE Penetrator Performance ------------- Evolutions (5) 2500 Regions Visited (11) 2200 Robots Destroyed (104) 520 Value Destroyed (3287) 3287 Prototype IDs (41) 820 Alien Tech Used (0) 0 Bonus (2082) 2082 TOTAL SCORE: 11409 Bonus ------- High Alert Combat Kills 69 Follower Combat Kills 1408 Entered DSFs 500 Aligned with FarCom 300 Friendly Fire -195 Cogmind --------- Core Integrity 0/1000 Matter 198/300 Energy 365/365 System Corruption 16% Temperature Cool (0) Movement Walking (116) Location -5/Cetus Parts ------- > --- POWER (2) -------- Light Angular Momentum Engine Neutrino Core > --- PROPULSION (4) --- Carbon-fiber Leg Carbon-fiber Leg Flexi-carbon Leg Myomer Leg > --- UTILITY (8) ------ Improved Melee Analysis Suite Improved Target Analyzer Core Analyzer Armor Integrity Analyzer Improved Medium Armor Plating Advanced Hacking Suite Advanced System Shield System Guard > --- WEAPON (3) ------- Heavy Missile Launcher Powered Hammer Phasing Sabre > --- INVENTORY (5) ---- Improved Plasma Cutter Greatsword Phasing Sabre Phasing Sabre Peak State ------------ > --- POWER ------------ F-cell Engine Micro Fission Core > --- PROPULSION ------- Flexi-carbon Leg Flexi-carbon Leg Improved Thunder Leg Improved Thunder Leg > --- UTILITY ---------- Medium Storage Unit Layered Light Armor Plating Layered Light Armor Plating System Shield Advanced System Shield Advanced System Shield Advanced System Shield System Guard > --- WEAPON ----------- Powered Hammer Powered Hammer Chainsword > --- INVENTORY -------- Aluminum Leg Aluminum Leg Coolant Injector Heavy Missile Launcher Field Lobotomy Kit Powered Hammer Powered Hammer Powered Hammer Greatsword [Rating: 89] Favorites ----------- Power F-cell Engine Engine F-cell Engine Power Core Micro Fission Core Reactor Antimatter Reactor Propulsion Aluminum Leg Treads Advanced Treads Leg Aluminum Leg Wheel Compact Wheel Flight Unit Improved VTOL Module Utility Advanced System Shield Device Scrap Suit Storage Medium Storage Unit Processor System Guard Hackware Advanced System Shield Protection Layered Light Armor Plating Weapon Powered Hammer Energy Gun Improved EM Shotgun Ballistic Gun Gauss Rifle Launcher Heavy Missile Launcher Special Weapon Field Lobotomy Kit Impact Weapon Powered Hammer Slashing Weapon Chainsword Build | -11 -10 -10 -10 -9 -8 -7 -7 -6 -5 -5 -5 ------- Run | Yrd Mat Min Exi Min Mat Fac DSF Fac Fac Ext Cet Slots Evolved 10 | . . . . . 4 2 . 2 2 . . Power 1 | . . . . . 1 . . . . . . Propulsion 2 | . . . . . 1 . . 1 . . . Utility 6 | . . . . . 2 1 . 1 2 . . Weapon 1 | . . . . . . 1 . . . . . Parts Attached 133 | 6 6 4 . 6 18 1 13 10 32 37 . Power 24 | 1 1 1 . 2 4 . 3 1 4 7 . Engine 19 | 1 1 1 . 2 4 . 3 1 . 6 . Core 4 | . . . . . . . . . 3 1 . Reactor 1 | . . . . . . . . . 1 . . Propulsion 48 | 2 3 1 . 1 6 . 4 3 8 20 . Treads 2 | . . . . . 2 . . . . . . Leg 34 | 2 3 1 . 1 1 . 3 1 6 16 . Wheel 10 | . . . . . 3 . 1 . 2 4 . Hover . | . . . . . . . . . . . . Flight 2 | . . . . . . . . 2 . . . Utility 34 | 1 2 . . 1 4 1 4 5 11 5 . Device 8 | . 1 . . 1 1 . . 2 2 1 . Storage 4 | 1 1 . . . 1 . 1 . . . . Processor 5 | . . . . . . . . . 3 2 . Hackware 8 | . . . . . . 1 . 3 4 . . Protection 9 | . . . . . 2 . 3 . 2 2 . Artifact . | . . . . . . . . . . . . Weapon 27 | 2 . 2 . 2 4 . 2 1 9 5 . Energy Gun 5 | 2 . 1 . . 2 . . . . . . Energy Cannon . | . . . . . . . . . . . . Ballistic Gun 4 | . . 1 . 2 . . . 1 . . . Ballistic Cannon . | . . . . . . . . . . . . Launcher 1 | . . . . . . . . . 1 . . Special Weapon 2 | . . . . . 1 . . . . 1 . Impact Weapon 10 | . . . . . 1 . . . 7 2 . Slashing Weapon 5 | . . . . . . . 2 . 1 2 . Piercing Weapon . | . . . . . . . . . . . . Special Melee Weapon . | . . . . . . . . . . . . Unidentified Prototypes 8 | . . . . . 2 . . 4 1 1 . Parts Lost 48 | . 1 1 . . 6 . 2 . 21 17 . Power 8 | . . . . . 2 . . . 3 3 . Propulsion 20 | . . . . . 2 . 2 . 7 9 . Utility 12 | . . . . . 1 . . . 8 3 . Weapon 8 | . 1 1 . . 1 . . . 3 2 . Highest Loss Streak 8 | . 1 1 . . 4 . 1 . 8 7 . To Critical Strikes 1 | . . . . . . . . . . 1 . Average Backups 7 | . 3 7 8 4 7 9 9 9 8 3 4 Power . | . 1 2 1 . . 1 1 . . . . Propulsion . | . 2 4 2 . . 1 1 . . . . Utility 2 | . . 1 2 1 2 3 4 5 2 . . Weapon 3 | . . . 2 1 3 3 2 2 5 3 3 Tool/Special . | . . . . . . . . . . . . Unused Backups 15 | . . 2 . 3 3 . 1 . 3 1 2 Power . | . . . . . . . . . . . . Propulsion 3 | . . 2 . . 1 . . . . . . Utility 6 | . . . . 1 2 . 1 . 2 . . Weapon 6 | . . . . 2 . . . . 1 1 2 Tool/Special . | . . . . . . . . . . . . Average Slot Usage (%) 90 | . 96 96 100 88 84 89 90 89 91 90 100 Engine 9 | . 14 14 14 14 15 15 14 10 5 5 5 Core 1 | . . . . . . . . . 3 . 5 Treads 1 | . . . . . 6 . . . . . . Leg 18 | . 28 28 28 28 14 . 3 25 18 16 23 Wheel 2 | . . . . . 4 23 18 . . 4 . Device 5 | . . 14 14 14 11 7 7 7 1 2 . Storage 6 | . 26 14 14 3 6 7 7 6 4 . . Processor 6 | . . . . . . . . . 8 20 29 Hackware 10 | . . . . . . 4 1 14 18 11 11 Protection 5 | . . . . . 7 7 13 3 7 5 5 Energy Gun 3 | . 26 22 14 3 5 7 . . . . . Ballistic Gun 3 | . . 2 14 24 10 7 . . . . . Impact Weapon 5 | . . . . . 1 7 7 6 6 13 5 Slashing Weapon 5 | . . . . . . . 14 12 9 2 9 Peak Build Rating 89 | 6 8 11 12 24 44 36 47 63 89 89 85 Average Rating 54 | 5 6 10 11 16 32 35 39 59 76 73 84 On Entrance 31 | . 6 8 11 12 24 31 36 46 63 58 85 Avg Prop Armor Cover (%) 6 | . . . . . 6 . 5 . . 6 . Naked Turns . | . . . . . . . . . . . . Heaviest Build 55 | 12 15 15 15 19 40 43 51 50 55 41 41 Greatest Support 100 | 20 20 20 20 25 42 42 48 58 96 100 75 Greatest Overweight (x) 6 | . . . . . 3 1 2 . 6 2 . Average Overweight (x) . | . . . . . . 1 . . . . . Largest Inventory Capacity 10 | 8 8 8 8 8 10 10 10 10 10 5 5 Average Capacity 8 | 7 8 8 8 5 8 10 10 10 9 5 5 Most Carried 10 | 3 8 8 8 8 10 9 10 10 10 5 5 Average Carried 8 | . 3 7 8 4 7 9 9 9 9 4 5 Final Capacity 10 | 8 8 8 8 5 10 10 10 10 5 5 5 Final Carried 10 | 3 8 8 8 5 10 9 10 10 5 5 5 Scrap Suit Usage (%) 32 | . . . . 31 79 100 54 100 10 . . Parts Cannibalized 5 | . . . . . 4 . 1 . . . . Class Distribution -------------------- 24% | Hacker-Mutant 22% | Hacker-Gladiator 21% | Scavenger-Mutant 17% | Mutant 8% | Commander-Gladiator 3% | Scavenger-Gladiator Dominant Class ---------------- Mutant | -10/Materials Scavenger-Mutant | -10/Mines Scavenger-Mutant | -10/Exiles Scrapper | -9/Mines Mutant | -8/Materials Scavenger-Mutant | -7/Factory Scavenger-Mutant | -7/DSF Hacker-Mutant | -6/Factory Hacker-Gladiator | -5/Factory Commander-Gladiator | -5/Extension Commander-Gladiator | -5/Cetus Resources | -11 -10 -10 -10 -9 -8 -7 -7 -6 -5 -5 -5 ----------- Run | Yrd Mat Min Exi Min Mat Fac DSF Fac Fac Ext Cet Matter Collected 2266 | 260 60 40 . 75 575 52 150 146 493 415 . Remotely . | . . . . . . . . . . . . Salvage Created 4858 | 82 352 123 . . 1674 . 266 163 1651 533 14 Parts 185 | 4 13 3 . . 63 . 13 2 74 11 2 Haulers Intercepted 6 | . 1 . . . 3 . . 1 1 . . Recyclers Shooed 8 | . 2 . . . 4 . . . 1 1 . Parts Field Recycled . | . . . . . . . . . . . . Retrieved Matter . | . . . . . . . . . . . . Parts Self-Destructed . | . . . . . . . . . . . . Prevented . | . . . . . . . . . . . . Parts Restored . | . . . . . . . . . . . . Kills | -11 -10 -10 -10 -9 -8 -7 -7 -6 -5 -5 -5 ------- Run | Yrd Mat Min Exi Min Mat Fac DSF Fac Fac Ext Cet Combat Hostiles Destroyed 65 | . 6 6 . . 15 . 4 1 26 7 . Melee 22 | . . . . . . . 3 1 13 5 . Guns 27 | . 6 6 . . 15 . . . . . . AOE 7 | . . . . . . . . . 7 . . Classes Destroyed 14 | 1 3 1 . . 5 . 1 . 2 1 . Worker 5 | . . . . . 2 . . . 3 . . Builder 8 | . . . . . 4 . . . 4 . . Tunneler 2 | . . . . . . . . . 2 . . Hauler 6 | . 1 . . . 3 . . 1 1 . . Recycler 11 | 1 . . . . 7 . . . 2 1 . Mechanic 1 | . . . . . 1 . . . . . . Operator 1 | . . . . . 1 . . . . . . Watcher 4 | . 1 . . . 1 . . . 1 . 1 Swarmer 16 | . . 5 . . 2 . . . 9 . . Grunt 27 | . 6 1 . . 8 . 2 . 6 4 . Sentry 12 | . . . . . 5 . 1 1 3 2 . Specialist 1 | . . . . . . . 1 . . . . Programmer 8 | . . . . . . . . . 8 . . Behemoth 1 | . . . . . . . . . . 1 . Thug 1 | . . . . . 1 . . . . . . Best Kill Streak 6 | 1 2 3 . . 6 . 2 1 5 2 1 Combat Bots Only 4 | . 2 3 . . 4 . 2 1 4 2 . Max Kills in Single Turn 2 | 1 1 2 . . 2 . 1 1 2 1 1 Gunslinging 1 | . . 1 . . 1 . . . . . . Exploded 2 | . . . . . . . . . 2 . . Melee 1 | . . . . . . . 1 1 1 1 . Uniques/NPCs Destroyed . | . . . . . . . . . . . . Combat | -11 -10 -10 -10 -9 -8 -7 -7 -6 -5 -5 -5 -------- Run | Yrd Mat Min Exi Min Mat Fac DSF Fac Fac Ext Cet Hostile Shots Fired 650 | . 48 48 . . 109 . 47 52 251 89 6 Missed 190 | . 15 18 . . 36 . 15 19 65 21 1 Hits 460 | . 33 30 . . 73 . 32 33 186 68 5 Melee 2 | . . . . . . . . . 1 1 . Projectile 458 | . 33 30 . . 73 . 32 33 185 67 5 Critical Strikes 28 | . 3 1 . . 5 . . 1 12 5 1 Actively Blocked 1 | . . . . . 1 . . . . . . Part Disruptions 1 | . . . . . . . . . 1 . . Damage Taken 8528 | . 444 245 . 39 1273 . 341 313 3862 1934 77 Core 1249 | . 65 40 . . 109 . 18 16 768 194 39 Absorbed by Shields 98 | . . . . . . . 5 . . 44 49 Redirected to Shielding 100 | . . . . . 100 . . . . . . Ignored by Resistances 7 | . . . . . . . . . 7 . . Regen/Repaired (Parts) 244 | . . . . . 238 . 6 . . . . Core Remaining (%) 86 | 100 . . . 58 80 . 97 98 . . . Volleys Fired 162 | 4 38 17 . . 90 . 1 . 9 . 3 Largest 2 | 2 2 2 . . 2 . 1 . 1 . 1 Hottest 105 | 80 80 105 . . 83 . . . 39 . 39 Shots Fired 254 | 8 61 22 . . 150 . 1 . 9 . 3 Gun 240 | 8 61 22 . . 149 . . . . . . Cannon . | . . . . . . . . . . . . Launcher 9 | . . . . . . . . . 6 . 3 Special 5 | . . . . . 1 . 1 . 3 . . Kinetic 96 | . . . . . 96 . . . . . . Thermal 91 | 8 61 22 . . . . . . . . . Explosive 9 | . . . . . . . . . 6 . 3 Electromagnetic 53 | . . . . . 53 . . . . . . Robot Hit Streak 15 | 2 5 3 . . 15 . 2 . 5 . 5 Robot Miss Streak 4 | 2 3 4 . . 4 . . . 1 . . Penetration Max 1 | . . . . . 1 . . . . . . Secondary Targets 6 | . . 1 . . 5 . . . . . . Max Gunslinging Chain 1 | . . 1 . . 1 . . . . . . Shots Hit Robots 339 | 4 37 8 . . 113 . 18 5 109 42 3 Core Hits 147 | 2 18 6 . . 51 . 6 1 40 8 15 Critical Kills 5 | . . . . . 3 . . 1 . 1 . Critical Parts Destroyed 11 | . . . . . 3 . . 1 4 3 . Critical Strikes 31 | . . 1 . . 6 . 2 2 13 7 . Burn 1 | . . 1 . . . . . . . . . Destroy 5 | . . . . . 5 . . . . . . Smash 12 | . . . . . 1 . . 2 4 5 . Sever 13 | . . . . . . . 2 . 9 2 . Melee Attacks 303 | . . . . . 16 . 22 13 173 79 . Impact 145 | . . . . . 16 . 5 11 54 59 . Slashing 158 | . . . . . . . 17 2 119 20 . Piercing . | . . . . . . . . . . . . Sneak Attacks 26 | . . . . . 7 . 2 1 16 . . Combat Hostiles . | . . . . . . . . . . . . Follow-up Attacks 40 | . . . . . . . 5 . 23 12 . Damage Inflicted 12446 | 57 411 105 . 6 2963 . 835 271 5740 1773 285 Guns 2674 | 57 411 105 . . 2101 . . . . . . Cannons . | . . . . . . . . . . . . Explosions 1196 | . . . . . 128 . . . 783 . 285 Melee 8556 | . . . . . 726 . 835 271 4955 1769 . Ramming 20 | . . . . 6 8 . . . 2 4 . Kinetic 1310 | . . . . . 1310 . . . . . . Thermal 701 | 57 411 105 . . 128 . . . . . . Explosive 1068 | . . . . . . . . . 783 . 285 Electromagnetic 791 | . . . . . 791 . . . . . . Impact 4140 | . . . . . 726 . 236 271 1651 1256 . Slashing 4416 | . . . . . . . 599 . 3304 513 . Piercing . | . . . . . . . . . . . . Highest Corruption 16 | . . . . . . . . 4 10 16 16 Average Corruption 7 | . . . . . . . . 4 3 13 16 Corruption Purged . | . . . . . . . . . . . . Corruption Blocked . | . . . . . . . . . . . . Effects 94 | . . . . . . . . 13 30 50 1 Message Errors 27 | . . . . . . . . 5 10 11 1 Matter Fused 28 | . . . . . . . . 5 5 18 . Heat Flow Errors 7 | . . . . . . . . 1 3 3 . Energy Discharges 12 | . . . . . . . . . 4 8 . Parts Rejected 1 | . . . . . . . . . 1 . . Parts Fused 2 | . . . . . . . . . 1 1 . Data Loss (minor) 9 | . . . . . . . . 2 1 6 . Data Loss (major) 4 | . . . . . . . . . 4 . . Alerts 2 | . . . . . . . . . 1 1 . Misdirections 2 | . . . . . . . . . . 2 . Overload Shots . | . . . . . . . . . . . . Overflow Damage 1530 | . . . . . 322 . 50 44 968 146 . Projectiles . | . . . . . . . . . . . . Explosions 51 | . . . . . 38 . . . 13 . . Melee 1479 | . . . . . 284 . 50 44 955 146 . Knockbacks 10 | . . . . 1 2 . . . 6 1 . Impact 10 | . . . . 1 2 . . . 6 1 . Kinetic . | . . . . . . . . . . . . Secondary . | . . . . . . . . . . . . Self-Inflicted Damage 98 | . . . . . 98 . . . . . . Shots 3 | . . . . . 3 . . . . . . Rammed . | . . . . . . . . . . . . Targets Rammed 6 | . . . . 1 2 . . . 1 2 . Kicked 6 | . . . . 1 2 . . . 1 2 . Crushed . | . . . . . . . . . . . . Highest Temperature 324 | 72 252 6 . . 324 . . 102 226 177 . Average Temperature 71 | 38 96 3 . . 66 . . 39 65 80 . Received Heat Transfer 2277 | . 312 . . . 567 . 123 138 709 428 . Effects 1 | . 1 . . . . . . . . . . Interference 1 | . 1 . . . . . . . . . . Siege Activations . | . . . . . . . . . . . . Martial Activations . | . . . . . . . . . . . . Shielding Activations . | . . . . . . . . . . . . Robots Disrupted 1 | . . . . . 1 . . . . . . Combat Hostiles . | . . . . . . . . . . . . Robots Corrupted 12 | . . . . . 1 . 1 1 7 2 . Combat Hostiles 9 | . . . . . . . 1 . 6 2 . Parts Fried 18 | . . . . . 7 . 1 . 8 2 . Impact Corruptions 35 | . . . . . 6 . 2 3 18 6 . Robots Melted . | . . . . . . . . . . . . Combat Hostiles . | . . . . . . . . . . . . Parts Melted 11 | . 3 5 . . 1 . . . . 2 . Heat Transferred 1584 | 125 925 334 . . 200 . . . . . . Parts Sabotaged . | . . . . . . . . . . . . Parts Stolen . | . . . . . . . . . . . . Parts Stripped . | . . . . . . . . . . . . Power Chain Reactions 3 | . . . . . 3 . . . . . . Alert | -11 -10 -10 -10 -9 -8 -7 -7 -6 -5 -5 -5 ------- Run | Yrd Mat Min Exi Min Mat Fac DSF Fac Fac Ext Cet Maximum Alert Level 2 | . . . . . 1 . 1 . 2 2 1 Low Security (%) 58 | 100 100 100 . 100 57 100 77 100 54 3 . Level 1 29 | . . . . . 42 . 22 . 17 86 100 Level 2 12 | . . . . . . . . . 27 10 . Level 3 . | . . . . . . . . . . . . Level 4 . | . . . . . . . . . . . . Level 5 . | . . . . . . . . . . . . High Security . | . . . . . . . . . . . . Max Security . | . . . . . . . . . . . . Sterilizations 1 | . . . . . . . 1 . . . . Peak Influence 519 | 5 45 87 . . 297 130 227 119 519 449 318 Initial 252 | . . 7 . . . 130 42 119 5 252 240 Average 161 | . 19 46 . . 134 95 144 20 199 310 251 Influence Increases 4018 | 5 169 201 . . 776 . 225 85 1328 1141 88 Destroy 0b10 Robot/C 2200 | . 120 160 . . 440 . 160 20 700 580 20 Destroy 0b10 Robot/NC 255 | 5 10 . . . 95 . 5 5 80 50 5 Destroy Leader 366 | . 24 30 . . 100 . 20 12 124 56 . Allied During Kill 413 | . . 11 . . 31 . 6 . 12 328 25 Successful Hack 152 | . . . . . 12 . . 44 51 45 . Select Force Hacks 20 | . . . . . . . . . 20 . . Disable Machine 90 | . . . . . 30 . . . 60 . . Destroy Structure 297 | . . . . . 23 . 4 4 176 52 38 Lose Combat Pursuer 225 | . 15 . . . 45 . 30 . 105 30 . Influence Decreases 3700 | 5 149 170 51 . 487 229 58 300 823 1229 199 Entered New Map 810 | . . 13 51 . . 159 18 108 7 265 189 Time Decay 1897 | 5 140 147 . . 407 70 . 192 412 514 10 Lost Part 463 | . 9 10 . . 60 . 20 . 194 170 . Lost Ally 380 | . . . . . 20 . 20 . 60 280 . Purge Threat 150 | . . . . . . . . . 150 . . Squads Dispatched 25 | . . 1 . . 5 . 1 4 12 2 . Investigation 6 | . . . . . 1 . . . 5 . . Extermination 7 | . . . . . . . . 2 5 . . Reinforcement 10 | . . . . . 4 . 1 2 1 2 . Assault 2 | . . 1 . . . . . . 1 . . Garrison . | . . . . . . . . . . . . Intercept . | . . . . . . . . . . . . Searches Triggered . | . . . . . . . . . . . . Construction Impeded 1 | . . . . . . . . . . 1 . Haulers Reinforced 2 | . . . . . . . . 1 1 . . Active Scanning Responses . | . . . . . . . . . . . . Cargo Convoy Interrupts 1 | . . . . . . . . 1 . . . Stealth | -11 -10 -10 -10 -9 -8 -7 -7 -6 -5 -5 -5 --------- Run | Yrd Mat Min Exi Min Mat Fac DSF Fac Fac Ext Cet Distress Signals 11 | . 2 . . . 7 . . . . 1 1 Communications Jammed . | . . . . . . . . . . . . Distress Signals . | . . . . . . . . . . . . Times Spotted 160 | . 10 8 . . 42 . 8 11 45 33 3 Peak Tracking Total 7 | . 3 3 . . 7 . 4 4 6 7 5 Tactical Retreats 13 | . 1 . . . 2 . 1 . 7 2 . Traps | -11 -10 -10 -10 -9 -8 -7 -7 -6 -5 -5 -5 ------- Run | Yrd Mat Min Exi Min Mat Fac DSF Fac Fac Ext Cet Traps Triggered 9 | . . . . . 1 . 1 1 4 2 . Indirectly . | . . . . . . . . . . . . Trap Hack Attempts . | . . . . . . . . . . . . Triggered . | . . . . . . . . . . . . Disarmed . | . . . . . . . . . . . . Reprogrammed . | . . . . . . . . . . . . Reused . | . . . . . . . . . . . . Traps Extracted . | . . . . . . . . . . . . Installed . | . . . . . . . . . . . . Triggered . | . . . . . . . . . . . . Machines | -11 -10 -10 -10 -9 -8 -7 -7 -6 -5 -5 -5 ---------- Run | Yrd Mat Min Exi Min Mat Fac DSF Fac Fac Ext Cet Machines Disabled 8 | . . . . . 2 . . . 4 2 . Max in Single Turn 2 | . . . . . 1 . . . 2 . . Garrison Access 2 | . . . . . . . . . 2 . . Machines Repaired . | . . . . . . . . . . . . Machines Dismantled . | . . . . . . . . . . . . Machines Sabotaged . | . . . . . . . . . . . . Overloaded Fab Kills . | . . . . . . . . . . . . Hacking | -11 -10 -10 -10 -9 -8 -7 -7 -6 -5 -5 -5 --------- Run | Yrd Mat Min Exi Min Mat Fac DSF Fac Fac Ext Cet Machines Accessed 38 | . . . 1 1 6 2 . 7 16 5 . Terminals 25 | . . . . . 5 1 . 5 9 5 . Fabricators 7 | . . . . . . 1 . 2 4 . . Repair Stations 1 | . . . . . 1 . . . . . . Recycling Units . | . . . . . . . . . . . . Scanalyzers 1 | . . . . . . . . . 1 . . Garrison Access 2 | . . . . . . . . . 2 . . Total Hacks 184 | . . . 1 1 20 2 . 36 108 16 . Successful 92 | . . . 1 1 9 1 . 12 61 7 . Failed 92 | . . . . . 11 1 . 24 47 9 . Catastrophic 16 | . . . . . . 1 . 6 8 1 . Database Lockouts . | . . . . . . . . . . . . Manual 83 | . 2 . 1 . 7 1 . 20 49 3 . Terminals 119 | . . . . . 18 1 . 23 61 16 . Fabricators 43 | . . . . . . 1 . 13 29 . . Repair Stations 2 | . . . . . 2 . . . . . . Recycling Units . | . . . . . . . . . . . . Scanalyzers 15 | . . . . . . . . . 15 . . Garrison Access 3 | . . . . . . . . . 3 . . Terminal Hacks 46 | . . . 1 1 7 1 . 4 26 6 . Record 2 | . . . . . . . . . 1 1 . Part Schematic 2 | . . . . . . . . . 1 1 . Robot Analysis 8 | . . . . . 3 . . . 5 . . Prototype ID Bank 4 | . . . . . 2 . . 1 1 . . Open Door 5 | . . . . 1 . . . . 1 3 . Open DSF 1 | . . . . . . 1 . . . . . Level Access Points 1 | . . . . . . . . 1 . . . Emergency Access Points 1 | . . . . . . . . . 1 . . Terminal Index 1 | . . . . . . . . . 1 . . Repair Station Index 1 | . . . . . . . . . 1 . . Scanalyzer Index 1 | . . . . . . . . . 1 . . Alert Level 3 | . . . . . 1 . . . 2 . . Unreport Threat 1 | . . . . . . . . . 1 . . Locate Traps 1 | . . . . . . . . . 1 . . Dispatch Records 2 | . . . . . 1 . . . 1 . . Recall Investigation 2 | . . . . . . . . . 2 . . Recall Extermination 1 | . . . . . . . . . 1 . . Zone Layout 8 | . . . . . . . . 2 5 1 . Proto ID Catalog 1 | . . . 1 . . . . . . . . Fabricator Hacks 5 | . . . . . . . . 1 4 . . Network Status 2 | . . . . . . . . 1 1 . . Load Schematic 1 | . . . . . . . . . 1 . . Build 2 | . . . . . . . . . 2 . . Repair Station Hacks 2 | . . . . . 2 . . . . . . Scan Component 1 | . . . . . 1 . . . . . . Repair 1 | . . . . . 1 . . . . . . Recycling Unit Hacks . | . . . . . . . . . . . . Scanalyzer 15 | . . . . . . . . . 15 . . Insert Component 3 | . . . . . . . . . 3 . . Analyze 3 | . . . . . . . . . 3 . . Retrieve Study 9 | . . . . . . . . . 9 . . Garrison Access Hacks 2 | . . . . . . . . . 2 . . Seal Access 2 | . . . . . . . . . 2 . . Unauthorized Hacks 22 | . . . . . . . . 7 14 1 . Terminals 7 | . . . . . . . . 3 3 1 . Assimilate 2 | . . . . . . . . 1 1 . . Botnet 4 | . . . . . . . . 1 2 1 . Operators 1 | . . . . . . . . 1 . . . Fabricators 15 | . . . . . . . . 4 11 . . Report 4 | . . . . . . . . 1 3 . . Liberate 4 | . . . . . . . . 1 3 . . Fabnet 6 | . . . . . . . . 2 4 . . Download 1 | . . . . . . . . . 1 . . Repair Stations . | . . . . . . . . . . . . Recycling Units . | . . . . . . . . . . . . Scanalyzers . | . . . . . . . . . . . . Garrison Access . | . . . . . . . . . . . . Data Cores Recovered 1 | . . . . . 1 . . . . . . Used 1 | . . . . . 1 . . . . . . Hacking Detections 27 | . . . . . 6 1 . 7 11 2 . Full Trace Events 4 | . . . . . 1 . . . 3 . . Feedback Events . | . . . . . . . . . . . . Feedback Blocked . | . . . . . . . . . . . . Robot Schematics Acquired . | . . . . . . . . . . . . Robots Built . | . . . . . . . . . . . . Authchips . | . . . . . . . . . . . . Time . | . . . . . . . . . . . . Total Robot Build Rating . | . . . . . . . . . . . . Part Schematics Acquired 5 | . . . . . . . . . 4 1 . Parts Built 3 | . . . . . . . . . 3 . . Authchips . | . . . . . . . . . . . . Time 117 | . . . . . . . . . 117 . . Total Part Build Rating 22 | . . . . . . . . . 22 . . Part Studies Acquired 8 | . . . . . . . . . 8 . . Parts Repaired 1 | . . . . . 1 . . . . . . Time 38 | . . . . . 38 . . . . . . Parts Recycled . | . . . . . . . . . . . . Recycled Matter . | . . . . . . . . . . . . Retrieved Matter . | . . . . . . . . . . . . Retrieved Components . | . . . . . . . . . . . . Parts Scanalyzed 3 | . . . . . . . . . 3 . . Part Schematics Acquired 3 | . . . . . . . . . 3 . . Parts Damaged 1 | . . . . . . . . . 1 . . Bothacking | -11 -10 -10 -10 -9 -8 -7 -7 -6 -5 -5 -5 ------------ Run | Yrd Mat Min Exi Min Mat Fac DSF Fac Fac Ext Cet Used RIF Installer . | . . . . . . . . . . . . Robots Hacked 2 | . . . . . . . . . 1 1 . Non-combat . | . . . . . . . . . . . . Combat 2 | . . . . . . . . . 1 1 . Robot Hacks Applied . | . . . . . . . . . . . . Relay Couplers Released . | . . . . . . . . . . . . Fabnet Peak Effective % 6 | . . . . . . . . . 6 6 6 Autooverrided 2 | . . . . . . . . . 1 1 . Robots Rewired 24 | . . . . . 1 . . . . 23 . Allies Hacked . | . . . . . . . . . . . . Hacks Repelled . | . . . . . . . . . . . . Allies | -11 -10 -10 -10 -9 -8 -7 -7 -6 -5 -5 -5 -------- Run | Yrd Mat Min Exi Min Mat Fac DSF Fac Fac Ext Cet Total Allies 40 | . . 1 . . 2 . 1 1 9 26 . Largest Group 14 | . . 1 1 1 2 . 1 1 3 14 13 Highest-Rated Group 541 | . . 31 31 31 121 . 90 10 156 541 500 Highest-Rated Ally 159 | . . 31 31 31 90 . 90 10 85 159 159 Initial Warlord ECA Mod 9 | . . . . . . . . 9 8 8 8 Total Orders 2 | . . . . . 2 . . . . . . PICKUP 1 | . . . . . 1 . . . . . . COLLECT 1 | . . . . . 1 . . . . . . Ally Attacks 292 | . . 19 . . 33 . 13 . 33 189 5 Total Damage 8083 | . . 144 . . 829 . 562 . 1255 5174 119 Kills 60 | . . 2 . . 8 . 4 . 12 33 1 Allies Corrupted 1 | . . . . . . . . . . 1 . Allies Melted 1 | . . . . . 1 . . . . . . Field Lobotomies 4 | . . . . . 1 . 1 . 2 . . Intel | -11 -10 -10 -10 -9 -8 -7 -7 -6 -5 -5 -5 ------- Run | Yrd Mat Min Exi Min Mat Fac DSF Fac Fac Ext Cet Active Infowar (turns) . | . . . . . . . . . . . . Robot Analysis Total 8 | . . . . . 3 . . . 5 . . Derelict Logs Recovered 2 | . . 1 . 1 . . . . . . . Drone Launches . | . . . . . . . . . . . . Drone Recoveries . | . . . . . . . . . . . . Exploration | -11 -10 -10 -10 -9 -8 -7 -7 -6 -5 -5 -5 ------------- Run | Yrd Mat Min Exi Min Mat Fac DSF Fac Fac Ext Cet Turns Passed 10010 | 94 361 301 410 358 2011 156 244 917 3723 1413 22 Spaces Moved 6067 | 56 196 206 340 276 949 143 142 685 2293 768 13 Core 41 | 8 . . . . . . . . 33 . . Treads . | . . . . . . . . . . . . Legs 5241 | 48 196 206 340 276 723 . 20 685 2231 503 13 Wheels 785 | . . . . . 226 143 122 . 29 265 . Hover . | . . . . . . . . . . . . Flight . | . . . . . . . . . . . . Fastest Speed 50 | 50 120 120 120 120 93 108 93 120 90 86 116 Average Speed 128 | 110 120 120 120 120 162 108 103 120 128 113 116 Slowest Speed 350 | 120 120 120 120 120 330 108 130 120 350 190 116 Overloaded Moves . | . . . . . . . . . . . . Propulsion Burnouts . | . . . . . . . . . . . . Robots Hopped . | . . . . . . . . . . . . Potential Cave-ins . | . . . . . . . . . . . . Cave-ins Triggered 1 | . . . . . . . . . 1 . . Exploration Rate (%) 40 | 3 24 49 63 46 47 3 93 22 39 86 9 Regions Visited 11 Branch Regions 5 Pre-discovered Areas 1 | . . . . 1 . . . . . . . Known Exits Taken 2 | . . . . . . 1 . 1 . . . Unknown Exits Taken 8 | 1 1 1 1 1 1 . . . 1 1 . Scrap Searched 3 | . . . . 3 . . . . . . . Spaces Dug 71 | . . . . . 7 . . 4 42 18 . Terrain Destroyed 160 | . . . . . 20 . . 4 73 18 45 Melee 71 | . . . . . 7 . . 4 42 18 . Projectile 4 | . . . . . 4 . . . . . . AOE 85 | . . . . . 9 . . . 31 . 45 Terrain Rammed . | . . . . . . . . . . . . Walls Destroyed . | . . . . . . . . . . . . Machines Disabled . | . . . . . . . . . . . . Actions | -11 -10 -10 -10 -9 -8 -7 -7 -6 -5 -5 -5 --------- Run | Yrd Mat Min Exi Min Mat Fac DSF Fac Fac Ext Cet Total 7657 | 77 258 239 342 308 1233 144 211 760 2848 1220 17 Wait 723 | 9 18 5 1 5 123 . 9 42 340 171 . Move 6056 | 55 195 205 339 275 948 142 141 684 2292 767 13 Hop . | . . . . . . . . . . . . Pick Up 50 | 3 . 3 1 5 11 . 7 2 13 5 . Fast Attach 88 | 6 2 2 . 2 15 1 3 8 22 27 . Attach 19 | . . . . 1 3 1 2 1 8 3 . Detach 9 | . 1 . . 2 1 . 1 1 2 1 . Swap 58 | . 4 2 . 5 8 . 10 4 14 10 1 Drop 85 | . . 5 1 12 11 . 11 7 18 20 . Fire 162 | 4 38 17 . . 90 . 1 . 9 . 3 Melee 228 | . . . . . 16 . 17 11 128 56 . Ram . | . . . . . . . . . . . . Kick 6 | . . . . 1 2 . . . 1 2 . Crush . | . . . . . . . . . . . . Escape Stasis 17 | . . . . . . . 8 . 1 8 . Rewire 156 | . . . . . 5 . 1 . . 150 . Trap . | . . . . . . . . . . . . Miscellaneous . | . . . . . . . . . . . . Route ------- -11/Scrapyard -10/Materials (discovered 2 exits: [*Min] / [*Sub]) -10/Mines (discovered 3 exits: [*Mat] / *Exi / [*Sub]) -10/Exiles -9/Mines -8/Materials -7/Factory -7/DSF -6/Factory (discovered 4 exits: *Fac x4) -5/Factory -5/Extension (discovered 3 exits: [*Fac x2] / [*Cet]) -5/Cetus History --------- Turn | Location | Event 2 | -11/Scrapyard | Met Revision 17 5 | -11/Scrapyard | Discovered new exit (range 15) 95 | -11/Scrapyard | Entered Materials 320 | -10/Materials | Build established: Mutant 333 | -10/Materials | Discovered new exit (range 10) 380 | -10/Materials | Discovered new exit (range 8) 456 | -10/Materials | Entered Mines 457 | -10/Mines | Met a Derelict testing a Signal Generator 476 | -10/Mines | Discovered new exit (range 12) 506 | -10/Mines | Learned Materials stockpile data 557 | -10/Mines | Found a damaged Exp. Sensor Array with a note attached 560 | -10/Mines | Found Prototype Device 632 | -10/Mines | Discovered new exit (range 12) 735 | -10/Mines | Build established: Scavenger-Mutant 749 | -10/Mines | Deemed a non-threat by the Exiles lab entrance 749 | -10/Mines | Discovered new exit (range 5) 757 | -10/Mines | Entered Exiles 757 | -10/Exiles | Accompanied by 1 ally 785 | -10/Exiles | Met 8R-AWN 807 | -10/Exiles | Met EX-HEX 845 | -10/Exiles | Met EX-BIN 858 | -10/Exiles | Aligned with FarCom system 859 | -10/Exiles | Given EX-Vault access code 887 | -10/Exiles | Opened EX-Vault 918 | -10/Exiles | Warned to stay clear of 0b10 Research branches 1047 | -10/Exiles | Found Field Lobotomy Kit 1109 | -10/Exiles | Met EX-DEC 1151 | -10/Exiles | Discovered new exit (range 14) 1167 | -10/Exiles | Left Exiles lab with Field Lobotomy Kit 1167 | -10/Exiles | Entered Mines 1167 | -9/Mines | Accompanied by 1 ally 1208 | -9/Mines | Met a Derelict bent on vengeance 1215 | -9/Mines | Learned location of Zion (-7) 1228 | -9/Mines | Found a Scrap Suit stashed away for nefarious purposes 1232 | -9/Mines | Found Scrap Suit 1394 | -9/Mines | Discovered new exit (range 5) 1435 | -9/Mines | Met a Derelict who couldn't figure out how to use a Trap Extractor 1525 | -9/Mines | Entered Materials 1525 | -8/Materials | Accompanied by 1 ally 1525 | -8/Materials | Evolved 4 slots: Power x1, Propulsion x1, Utility x2 1747 | -8/Materials | Discovered new exit (range 13) 1824 | -8/Materials | Build established: Mutant 1939 | -8/Materials | Assimilated H-61 Shepherd with FLK Orb 2768 | -8/Materials | Lost 4 parts (2p1n1u) 3076 | -8/Materials | Build established: Scavenger-Mutant 3525 | -8/Materials | Repaired Hrd. Medium Armor Plating 3536 | -8/Materials | Entered Factory 3536 | -7/Factory | Evolved 2 slots: Utility x1, Weapon x1 3691 | -7/Factory | Identified exit to DSF 3692 | -7/Factory | Entered DSF 3728 | -7/DSF | Additional patrols routed to DSF 3731 | -7/DSF | Assimilated H-61 Shepherd with FLK Orb 3822 | -7/DSF | Discovered new exit (range 14) 3902 | -7/DSF | Sterilization system engaged 3922 | -7/DSF | Ambient heat levels rising (+10) 3936 | -7/DSF | Entered Factory 3936 | -6/Factory | Evolved 2 slots: Propulsion x1, Utility x1 4444 | -6/Factory | Identified exit to Factory 4493 | -6/Factory | Build established: Hacker-Mutant 4735 | -6/Factory | Cargo convoy interrupted 4853 | -6/Factory | Entered another Factory area 4853 | -5/Factory | Evolved 2 slots: Utility x2 5391 | -5/Factory | Discovered new exit (range 9) 5485 | -5/Factory | Crushed by falling debris 5496 | -5/Factory | Spotted B-75 Beast 5660 | -5/Factory | Fabricated Imp. Thunder Leg (x2) 6694 | -5/Factory | Local machine network offline 6723 | -5/Factory | Fabricated Adv. Hacking Suite (x1) 6916 | -5/Factory | Build established: Hacker-Gladiator 7604 | -5/Factory | Lost 7 parts (2p3n2u) 8153 | -5/Factory | First assault squad dispatched 8421 | -5/Factory | Core integrity fell below 50% 8480 | -5/Factory | System corruption reached 10% 8480 | -5/Factory | Assimilated B-75 Beast with FLK Orb 8483 | -5/Factory | Assimilated B-60 Warrior with FLK Orb 8510 | -5/Factory | Lost 8 parts (1p2n3u2w) 8576 | -5/Factory | Entered Extension 8576 | -5/Extension | Accompanied by 3 allies 8630 | -5/Extension | Core integrity fell below 20% 8886 | -5/Extension | Rescued a captive Derelict 8901 | -5/Extension | Lost 5 allies 9061 | -5/Extension | Build established: Commander-Gladiator 9294 | -5/Extension | Spotted B-75 Beast 9312 | -5/Extension | Spotted B-75 Beast 9315 | -5/Extension | Allies destroyed B-75 Beast 9356 | -5/Extension | Destroyed B-75 Beast 9363 | -5/Extension | Lost 6 allies 9399 | -5/Extension | Lost 7 parts (2p4n1u) 9407 | -5/Extension | Discovered new exit (range 3) 9463 | -5/Extension | Rescued A7 9477 | -5/Extension | Lost 3 parts (2n1w) 9648 | -5/Extension | Watched by a mysterious "MATRIX" hacker 9653 | -5/Extension | Build established: Scavenger-Gladiator 9927 | -5/Extension | Discovered new exit (range 10) 9930 | -5/Extension | Discovered new exit (range 6) 9989 | -5/Extension | Entered Cetus 9989 | -5/Cetus | Accompanied by 13 allies (A7) 9994 | -5/Cetus | Acquired a Cetus Manufacturing Module code from A7 9996 | -5/Cetus | Build established: Commander-Gladiator 10004 | -5/Cetus | Spotted Cetus Guard 10005 | -5/Cetus | Spotted Cetus Guard 10008 | -5/Cetus | Spotted Cetus Guard 10009 | -5/Cetus | Allies destroyed Cetus Guard 10011 | -5/Cetus | Destroyed by Cetus Guard with Advanced KE Penetrator Last Messages --------------- network and use it for our own purposes. We've probably got squads on our tail and could use some help about now. Try entering \\A47L. Note that I've never tried this before, but now is as good a time as any." 10003_ DJTS<8VF:V:6QIRPSER6G2J9EZATH&FZ:D% 10006_ Penetrated by Slug. 10007_ Slug penetrates Wall. 10008_ Slug penetrates A7. 10008_ 3C-5NN(l) suffers critical hit (Destroy). 10009_ HV Slug penetrates Cetus Guard. 10009_ Cetus Guard suffers critical hit (Destroy). 10009_ Cetus Guard destroyed. 10009_ Penetrated by Slug. 10011_ HV Slug penetrates Cetus Guard. 10011_ Cetus Guard suffers critical hit (Destroy). 10011_ Destroyed Quantum Reactor. 10011_ Penetrated by Slug. Map ----- +----------------------------------------------------+ | ????????????????????????????????????????? | | ????????????????????????????????????????? | | ????????????????????????????????????????? | | ????????????????????????????????????????? | | ????????????????????????????????????????? | | ????????????????????????????????????????? | | ????????????????????????????????????????? | | ????????????????????????????????????????? | | ????????????????????????????????????????? | | ????????????????????????????????????????? | | ????????????????????????????????????????? | | ????????????????????????????????????????? | | ????????????????????????????????????????? | | ????????????????????????????????????????? | | ????????????????????????????????????????? | | ????????????????????????????????????????? | | ????????????????????????????????????????? | | ????????????????????????????????????????? | | ????????????????????????????????????????? | | ????????????????????????????????????????? | | ????????????????????????????????????????? | | ????????????????????????? # ?????????? | | ?###################### ?Y???????? | | ?# l h %????????? | | ?# lbb ggghlp Y ????????? | | ?# h b @ Y ????????? | | ?######################;;#??????????????? | | ????????????????????????????????????????? | | ????????????????????????????????????????? | | ????????????????????????????????????????? | | ????????????????????????????????????????? | | ????????????????????????????????????????? | | ????????????????????????????????????????? | | ????????????????????????????????????????? | | ????????????????????????????????????????? | | ????????????????????????????????????????? | | ????????????????????????????????????????? | | ????????????????????????????????????????? | | ????????????????????????????????????????? | | ????????????????????????????????????????? | | ????????????????????????????????????????? | | ????????????????????????????????????????? | | ????????????????????????????????????????? | | ????????????????????????????????????????? | | ????????????????????????????????????????? | | ????????????????????????????????????????? | | ????????????????????????????????????????? | | ????????????????????????????????????????? | | ????????????????????????????????????????? | | ????????????????????????????????????????? | +----------------------------------------------------+ Best States ------------- Heat Dissipation 66 Coolant Potential 65 Energy Generation 34 Energy Capacity 690 Matter Stores 300 Matter Capacity 300 Sight Range 16 Terrain Scan Density 10 Corruption Containment 8 Armor Coverage 525 Resistance: KI 30 Resistance: EM 25 Weapon Shielding 66 Melee Speed Boost 20 Evasion (%) 70 Melee Accuracy 6 Target Analysis 6 Core Analysis 6 Armor Integrity Analysis 30 Offensive Hacking 14 Defensive Hacking 66 Item Schematics ----------------- Powered Hammer | -5/Factory | Scanalyzed Armor Integrity Analyzer | -5/Factory | Scanalyzed Greatsword | -5/Factory | Scanalyzed Adv. Hacking Suite | -5/Factory | Hacked Biometal Leg | -5/Extension | Hacked Robot Schematics ------------------ None Fabricated ------------ Imp. Thunder Leg | x2 | -5/Factory | Preloaded Adv. Hacking Suite | x1 | -5/Factory Repaired ---------- Hrd. Medium Armor Plating | 17% | -8/Materials Studied --------- Powered Hammer | -5/Factory | Hacked Flexi-carbon Leg | -5/Factory | Hacked Imp. Carbon-fiber Leg | -5/Factory | Hacked Chainsword | -5/Factory | Hacked Aluminum Leg | -5/Factory | Hacked Greatsword | -5/Factory | Hacked Mic. Fission Core | -5/Factory | Hacked Hvy. Missile Launcher | -5/Factory | Hacked Alien Tech Used ----------------- None Achievements -------------- None Challenges ------------ None Game ------ Seed DirectedDeuteriumFirepult Manual? 0 Play Time 02:25:00 Cumulative 136.2 hours Start 2026.07.02 @ 23:18:34 End 2026.07.03 @ 23:58:47 Sessions 4 Manual Loads 0 Difficulty Rogue Special Mode None Game No. 81 Rogue 81 Adventurer 0 Explorer 0 Win Type - Total 2 Types 2/0/0/0/0/0/0/0/0/0 Lore% 64 Gallery% 56 Achievement% 49 Wizard Run 0 Options --------- Layout 1 ASCII 0 Keyboard 0 Movement Numpad Keybinds 0 Fullscreen 1 Font 24/Smallcaps Map View 50x35 Zoom Use 0% Tactical HUD 1 Map Filters NONE Filters NONE Steam 1 RUN: 942a8248-ebc8-4441-a4cf-0dae1b27520e